bitfinex-derivatives/quotes_BTCF0:USTF0_20250602
["timestamp","ask_amount","ask_price","bid_price","bid_amount"]
[1748839974255,1.29704506,104810.0,104800.0,0.48585349]
[1748839974662,1.29704506,104810.0,104800.0,0.29509619]
[1748839975162,1.29704506,104810.0,104800.0,0.48585349]
[1748839975361,1.29704506,104810.0,104800.0,0.39731803]
[1748839976663,1.29704506,104810.0,104800.0,0.39761078]
[1748839977255,1.29704506,104810.0,104800.0,0.43394445]
[1748839978151,1.29704506,104810.0,104800.0,0.24318715]
[1748839978561,1.29704506,104810.0,104800.0,0.14998715]
[1748839978966,1.29704506,104810.0,104800.0,0.15018715]
[1748839979165,1.41340547,104810.0,104800.0,0.15018715]
[1748839980059,1.29704506,104810.0,104800.0,0.15018715]
[1748839980767,1.29704506,104810.0,104800.0,0.15019064]
[1748839982664,1.10628506,104810.0,104800.0,0.48730825]
[1748839982866,1.10628506,104810.0,104800.0,0.17955697]
[1748839983060,1.10628506,104810.0,104800.0,0.14685697]
[1748839983259,1.10628506,104810.0,104800.0,0.08783333]
[1748839983465,1.10628506,104810.0,104800.0,0.124167]
[1748839984068,1.10628506,104810.0,104800.0,0.10141848]
[1748839984069,1.25628506,104810.0,104800.0,0.10141848]
[1748839984271,1.37264547,104810.0,104800.0,0.05483794]
[1748839984567,1.37264547,104810.0,104800.0,0.10122288]
[1748839984762,1.37264547,104810.0,104800.0,0.10142288]
[1748839985359,1.25628506,104810.0,104800.0,0.10142288]
[1748839985766,1.37407093,104810.0,104800.0,0.10142288]
[1748839986065,1.37407093,104810.0,104800.0,0.13775655]
[1748839986368,1.25628506,104810.0,104800.0,0.13775655]
[1748839987059,0.44160506,104810.0,104800.0,0.44487416]
[1748839987258,1.31716506,104810.0,104800.0,0.43411696]
[1748839987470,1.31716506,104810.0,104800.0,0.31775655]
[1748839987776,1.31716506,104810.0,104800.0,0.13775655]
[1748839987962,1.43495093,104810.0,104800.0,0.10142288]
[1748839988163,1.43495093,104810.0,104800.0,0.10122288]
[1748839988357,1.31716506,104810.0,104800.0,0.05483773]
[1748839988562,1.31716506,104810.0,104800.0,0.10141621]
[1748839989774,1.43352547,104810.0,104800.0,0.10141621]
[1748839990774,1.43352547,104810.0,104800.0,0.14594341]
[1748839991266,1.43352547,104810.0,104800.0,0.14614341]
[1748839991665,1.43352547,104810.0,104800.0,0.14594341]
[1748839991863,1.43352547,104810.0,104800.0,0.14614341]
[1748839992265,1.43352547,104810.0,104800.0,0.10141621]
[1748839992763,1.79432547,104810.0,104800.0,0.14614341]
[1748839992970,1.79432547,104810.0,104800.0,0.19050893]
[1748839993163,1.79432547,104810.0,104800.0,0.14578437]
[1748839993767,1.67796506,104810.0,104800.0,0.14578437]
[1748839993969,1.67796506,104810.0,104800.0,0.14558437]
[1748839994165,1.79432547,104810.0,104800.0,0.14578437]
[1748839994364,1.79432547,104810.0,104800.0,0.10105717]
[1748839995279,1.67796506,104810.0,104800.0,0.10105717]
[1748839995570,1.79432547,104810.0,104800.0,0.10105717]
[1748839997474,1.79432547,104810.0,104800.0,0.05483773]
[1748839998377,1.91211134,104810.0,104800.0,0.10103362]
[1748840000477,1.79432547,104810.0,104800.0,0.10103362]
[1748840001972,1.79432547,104810.0,104800.0,0.05483773]
[1748840002180,1.79432547,104810.0,104800.0,0.10100901]
[1748840003866,1.23000506,104810.0,104800.0,0.10100901]
[1748840004070,1.67832506,104810.0,104800.0,0.11100901]
[1748840004580,1.67832506,104810.0,104800.0,0.10100901]
[1748840004879,1.67832506,104810.0,104800.0,0.13280901]
[1748840005271,1.79468547,104810.0,104800.0,0.13280901]
[1748840006581,1.79468547,104810.0,104800.0,0.13280838]
[1748840008684,1.79468547,104810.0,104800.0,0.16390838]
[1748840009385,1.79468547,104810.0,104800.0,0.19650838]
[1748840009683,1.67832506,104810.0,104800.0,0.19650838]
[1748840009982,1.79468547,104810.0,104800.0,0.19650838]
[1748840012388,1.79468547,104810.0,104800.0,0.10100838]
[1748840014073,1.79468547,104810.0,104800.0,0.10080838]
[1748840014276,1.91247134,104810.0,104800.0,0.10100838]
[1748840016587,1.91247134,104810.0,104800.0,0.05483773]
[1748840019184,1.91247134,104810.0,104800.0,0.10102757]
[1748840019584,1.91247134,104810.0,104800.0,0.10102733]
[1748840019785,1.55167134,104810.0,104800.0,0.10102733]
[1748840019992,1.91247134,104810.0,104800.0,0.10102733]
[1748840020693,1.79611093,104810.0,104800.0,0.10102733]
[1748840020894,1.91247134,104810.0,104800.0,0.10102733]
[1748840021096,1.82661093,104810.0,104800.0,0.10102733]
[1748840021297,1.94217134,104810.0,104800.0,0.10102733]
[1748840021894,1.94217134,104810.0,104800.0,0.13292733]
[1748840022993,2.08940368,104810.0,104800.0,0.08673773]
[1748840024591,2.08940368,104810.0,104800.0,0.05483773]
[1748840029391,1.52552327,104810.0,104800.0,0.05483773]
[1748840029587,1.97284327,104810.0,104800.0,0.05483773]
[1748840029792,1.97284327,104810.0,104800.0,0.14973773]
[1748840029997,1.82561093,104810.0,104800.0,0.14973773]
[1748840030495,1.94197134,104810.0,104800.0,0.14973773]
[1748840030695,1.24019093,104810.0,104800.0,0.47409888]
[1748840030900,1.43435093,104810.0,104800.0,0.78029581]
[1748840031398,1.28416506,104810.0,104800.0,0.78029581]
[1748840032897,1.28416506,104810.0,104800.0,0.82501883]
[1748840033194,0.83612506,104810.0,104800.0,0.82501883]
[1748840033393,1.28412506,104810.0,104800.0,0.82501883]
[1748840033593,1.28412506,104810.0,104800.0,0.82490482]
[1748840034491,0.75342506,104810.0,104800.0,0.86123849]
[1748840036192,0.75342506,104810.0,104800.0,0.8613525]
[1748840037200,0.75342506,104810.0,104800.0,0.8613039]
[1748840037698,0.75342506,104810.0,104800.0,0.6705468]
[1748840037897,0.75342506,104810.0,104800.0,0.55418639]
[1748840038104,0.75342506,104810.0,104800.0,0.6705468]
[1748840039304,0.78592506,104810.0,104800.0,0.6705468]
[1748840040896,0.81832506,104810.0,104800.0,0.6705468]
[1748840042009,0.81832506,104810.0,104800.0,0.62585179]
[1748840042898,0.81832506,104810.0,104800.0,0.58951812]
[1748840043099,0.81832506,104810.0,104800.0,0.63421313]
[1748840043607,0.81832506,104810.0,104800.0,0.63418145]
[1748840044302,1.26556506,104810.0,104800.0,0.63398145]
[1748840044506,1.74272547,104810.0,104800.0,0.51762104]
[1748840044711,1.77412547,104810.0,104800.0,0.21294108]
[1748840044900,1.77412547,104810.0,104800.0,0.11824108]
[1748840045100,1.77412547,104810.0,104800.0,0.11804108]
[1748840045296,1.44412547,104810.0,104800.0,0.11824108]
[1748840046609,1.32776506,104810.0,104800.0,0.11824108]
[1748840049111,1.44412547,104810.0,104800.0,0.11824108]
[1748840049603,1.56191134,104810.0,104800.0,0.11824108]
[1748840049811,1.56191134,104810.0,104800.0,0.07208137]
[1748840054908,1.44555093,104810.0,104800.0,0.11823661]
[1748840055111,1.56191134,104810.0,104800.0,0.11823661]
[1748840055611,1.56191134,104810.0,104800.0,0.11803661]
[1748840055819,1.56191134,104810.0,104800.0,0.11823661]
[1748840056018,1.56191134,104810.0,104800.0,0.07208137]
[1748840056315,0.99831093,104810.0,104800.0,0.07208137]
[1748840056614,1.56187134,104810.0,104800.0,0.1178953]
[1748840056815,1.56187134,104810.0,104800.0,0.10065166]
[1748840057617,1.56187134,104810.0,104800.0,0.14646567]
[1748840058422,1.56187134,104810.0,104800.0,0.10065174]
[1748840059709,1.56187134,104810.0,104800.0,0.05483773]
[1748840060814,1.56187134,104810.0,104800.0,0.00521323]
[1748840061009,1.56317149,104810.0,104800.0,3e-08]
[1748840061215,0.190775,104790.0,104780.0,0.05902364]
[1748840061422,1.12501587,104790.0,104780.0,0.05902364]
[1748840061617,0.1907932,104780.0,104770.0,0.17474083]
[1748840061813,0.2859932,104780.0,104770.0,0.38571719]
[1748840062724,0.2859932,104780.0,104770.0,0.38771719]
[1748840062725,0.2869932,104780.0,104770.0,0.38771719]
[1748840063312,0.2869932,104780.0,104770.0,0.30669984]
[1748840064017,0.2879932,104780.0,104770.0,0.31069984]
[1748840064526,0.3879932,104780.0,104770.0,0.13209984]
[1748840065024,0.39779708,104780.0,104770.0,0.13209984]
[1748840065527,0.39779708,104780.0,104770.0,0.07209984]
[1748840065927,0.51415749,104780.0,104770.0,0.08229984]
[1748840066225,0.96271749,104780.0,104770.0,0.04089984]
[1748840066427,0.96271749,104780.0,104770.0,0.00829984]
[1748840066814,1.32351749,104780.0,104770.0,0.00829984]
[1748840067216,1.32351749,104780.0,104770.0,0.00809984]
[1748840067417,1.32351749,104780.0,104770.0,0.00829984]
[1748840070630,1.37102635,104780.0,104770.0,0.00829984]
[1748840070928,1.25466594,104780.0,104770.0,0.00829984]
[1748840071132,1.37102635,104780.0,104770.0,0.00829984]
[1748840072215,1.32351749,104780.0,104770.0,0.00829984]
[1748840074529,1.32351749,104780.0,104770.0,0.01254938]
[1748840078225,1.20715708,104780.0,104770.0,0.01254938]
[1748840078423,1.32351749,104780.0,104770.0,0.01254938]
[1748840079424,1.32351749,104780.0,104770.0,0.00829984]
[1748840080028,1.32351749,104780.0,104770.0,0.00809984]
[1748840080229,1.32351749,104780.0,104770.0,0.00829984]
[1748840080430,1.32351749,104780.0,104770.0,0.01254938]
[1748840080631,0.87495749,104780.0,104770.0,0.01254938]
[1748840080835,1.43199749,104780.0,104770.0,0.04504938]
[1748840081025,1.43199749,104780.0,104770.0,0.10754938]
[1748840081922,0.75859708,104780.0,104770.0,0.10754938]
[1748840082126,1.43211749,104780.0,104770.0,0.10754938]
[1748840082532,1.43211749,104780.0,104770.0,0.10329984]
[1748840082927,1.42231361,104780.0,104770.0,0.10329984]
[1748840083533,1.42231361,104780.0,104770.0,0.10754938]
[1748840085439,1.42231361,104780.0,104770.0,0.14866456]
[1748840085839,0.86515361,104780.0,104770.0,0.14866456]
[1748840086135,1.42399361,104780.0,104770.0,0.14866456]
[1748840086343,1.42391361,104780.0,104770.0,0.14866456]
[1748840087245,1.42417966,104780.0,104770.0,0.14866456]
[1748840091653,1.3075532,104780.0,104770.0,0.14866456]
[1748840091850,1.42417966,104780.0,104770.0,0.14866456]
[1748840092644,1.42417966,104780.0,104770.0,0.1529141]
[1748840093847,1.3075532,104780.0,104770.0,0.1529141]
[1748840094045,1.42417966,104780.0,104770.0,0.1529141]
[1748840094355,1.79417966,104780.0,104770.0,0.1529141]
[1748840096351,1.79417966,104780.0,104770.0,0.19753364]
[1748840096547,1.23541966,104780.0,104770.0,0.19753364]
[1748840096853,1.79297966,104780.0,104770.0,0.1932841]
[1748840097349,1.79297966,104780.0,104770.0,0.10329984]
[1748840097547,1.79297966,104780.0,104770.0,0.19352355]
[1748840099854,1.79297966,104780.0,104770.0,0.14877881]
[1748840101461,1.34401966,104780.0,104770.0,0.14877881]
[1748840101758,1.79289966,104780.0,104770.0,0.14877881]
[1748840102353,1.79293966,104780.0,104770.0,0.14877881]
[1748840102551,1.79293966,104780.0,104770.0,0.19877881]
[1748840102753,1.79293966,104780.0,104770.0,0.31540527]
[1748840102953,1.2852332,104780.0,104770.0,0.79096091]
[1748840103256,1.2852332,104780.0,104770.0,0.82729458]
[1748840103460,1.2852332,104780.0,104770.0,0.63648368]
[1748840103656,1.40185966,104780.0,104770.0,0.54625997]
[1748840103850,1.40185966,104780.0,104770.0,0.59173535]
[1748840104545,1.40185966,104780.0,104770.0,0.54625997]
[1748840104857,1.40185966,104780.0,104770.0,0.63647364]
[1748840105259,1.40185966,104780.0,104770.0,0.60013997]
[1748840105755,0.8359932,104780.0,104770.0,0.79095097]
[1748840105962,1.2851532,104780.0,104770.0,0.82728464]
[1748840106453,1.2851532,104780.0,104770.0,0.87202315]
[1748840106659,0.6946932,104780.0,104770.0,0.87202315]
[1748840106956,0.6946932,104780.0,104770.0,1.29184679]
[1748840106957,1.2524532,104780.0,104770.0,1.29184679]
[1748840107659,0.8032932,104780.0,104770.0,1.29184679]
[1748840109259,0.8032932,104780.0,104770.0,1.33653639]
[1748840109462,0.8032932,104780.0,104770.0,1.29179788]
[1748840110668,0.8032932,104780.0,104770.0,1.23277424]
[1748840111571,0.8032932,104780.0,104770.0,1.19644057]
[1748840111756,0.8340932,104780.0,104770.0,1.19644057]
[1748840111956,0.8340932,104780.0,104770.0,1.19624057]
[1748840112965,0.8032932,104780.0,104770.0,1.19624057]
[1748840113359,0.7713932,104780.0,104770.0,1.19624057]
[1748840113563,0.4013928,104780.0,104770.0,1.4203433]
[1748840113765,0.4013928,104780.0,104770.0,1.18709038]
[1748840114269,0.4013928,104780.0,104770.0,1.30371684]
[1748840114270,0.3013928,104780.0,104770.0,1.30371684]
[1748840114653,0.3013928,104780.0,104770.0,1.30369952]
[1748840114857,0.3013928,104780.0,104770.0,1.3475384]
[1748840115258,0.3013928,104780.0,104770.0,0.9867384]
[1748840115462,0.3013928,104780.0,104770.0,1.46416486]
[1748840115963,0.3013928,104780.0,104770.0,1.4684144]
[1748840116963,0.3013928,104780.0,104770.0,1.46416486]
[1748840117962,0.3013928,104780.0,104770.0,1.46412834]
[1748840118468,0.3013928,104780.0,104770.0,1.34750188]
[1748840119269,0.3013928,104780.0,104770.0,1.39215391]
[1748840119572,0.3319928,104780.0,104770.0,1.39215391]
[1748840120868,0.3319928,104780.0,104770.0,1.84019391]
[1748840121065,0.3641928,104780.0,104770.0,1.84019391]
[1748840121761,0.3641928,104780.0,104770.0,1.87662582]
[1748840121967,0.3641928,104780.0,104770.0,1.88087536]
[1748840122359,0.3641928,104780.0,104770.0,1.83241286]
[1748840122666,0.3641928,104780.0,104770.0,1.7438774]
[1748840122870,0.3641928,104780.0,104770.0,1.2958374]
[1748840123167,0.3641928,104780.0,104770.0,1.73974786]
[1748840126773,0.3641928,104780.0,104770.0,1.73975269]
[1748840129371,0.3641928,104780.0,104770.0,1.69510415]
[1748840130176,0.3641928,104780.0,104770.0,1.69935369]
[1748840130358,0.3641928,104780.0,104770.0,1.81598015]
[1748840130563,0.3641928,104780.0,104770.0,1.69935369]
[1748840132274,0.2555928,104780.0,104770.0,1.57847769]
[1748840132464,0.2555928,104780.0,104770.0,1.65867224]
[1748840132968,0.2856928,104780.0,104770.0,1.65867224]
[1748840133165,0.2856928,104780.0,104770.0,1.7472077]
[1748840133372,0.2856928,104780.0,104770.0,1.7956526]
[1748840135666,0.2856928,104780.0,104770.0,1.79569219]
[1748840136264,0.2856928,104780.0,104770.0,1.73666855]
[1748840138881,0.2555928,104780.0,104770.0,1.73666855]
[1748840139270,0.2555928,104780.0,104770.0,1.74091809]
[1748840140089,0.2555928,104780.0,104770.0,1.74093356]
[1748840140280,0.2555928,104780.0,104770.0,1.73668402]
[1748840142878,0.2555928,104780.0,104770.0,1.62005756]
[1748840143078,0.2555928,104780.0,104770.0,1.73668402]
[1748840144379,0.2555928,104780.0,104770.0,1.69121828]
[1748840144580,0.0648,104780.0,104770.0,1.73672766]
[1748840145387,0.2555927,104780.0,104770.0,1.65244174]
[1748840148587,0.0326,104780.0,104770.0,1.83867058]
[1748840148886,0.0326,104780.0,104770.0,1.72202877]
[1748840149989,0.002,104780.0,104770.0,1.83865523]
[1748840150487,0.002,104780.0,104770.0,1.72202877]
[1748840153577,0.002,104780.0,104770.0,1.83865523]
[1748840153784,0.30474367,104790.0,104780.0,0.1907927]
[1748840153989,0.30474367,104790.0,104780.0,1.41062108]
[1748840154190,0.30474367,104790.0,104780.0,1.50006059]
[1748840154777,0.30574367,104790.0,104780.0,1.50106059]
[1748840154983,0.30674367,104790.0,104780.0,1.50206059]
[1748840155191,0.30674367,104790.0,104780.0,1.51944116]
[1748840155491,0.30674367,104790.0,104780.0,1.4028147]
[1748840157090,0.30674367,104790.0,104780.0,1.35415961]
[1748840157689,0.30674367,104790.0,104780.0,1.35415141]
[1748840158788,0.30674367,104790.0,104780.0,1.30120102]
[1748840159595,0.30674367,104790.0,104780.0,1.74572102]
[1748840161295,0.30674367,104790.0,104780.0,1.7457206]
[1748840162603,0.30674367,104790.0,104780.0,1.70923148]
[1748840162894,0.30674367,104790.0,104780.0,1.75394852]
[1748840163898,0.30674367,104790.0,104780.0,1.75394904]
[1748840164600,0.30674367,104790.0,104780.0,1.73656847]
[1748840166297,0.30674367,104790.0,104780.0,1.77305759]
[1748840166997,0.2877828,104790.0,104780.0,1.77305759]
[1748840168903,0.0638,104790.0,104780.0,1.88968405]
[1748840169103,0.0638,104790.0,104780.0,1.93440627]
[1748840169305,0.2545745,104790.0,104780.0,1.93440627]
[1748840169705,0.0638,104790.0,104780.0,1.93440627]
[1748840169902,0.2545745,104790.0,104780.0,1.93440627]
[1748840170107,0.2545745,104790.0,104780.0,1.81777981]
[1748840171803,0.2857745,104790.0,104780.0,1.92857981]
[1748840172406,0.2857745,104790.0,104780.0,1.8391403]
[1748840173006,0.2857745,104790.0,104780.0,1.92857981]
[1748840173604,0.2857745,104790.0,104780.0,1.92877981]
[1748840177808,0.2857745,104790.0,104780.0,1.81797981]
[1748840178103,0.2857745,104790.0,104780.0,1.77249413]
[1748840178311,0.2857745,104790.0,104780.0,1.81799345]
[1748840182396,0.2857745,104790.0,104780.0,1.78150433]
[1748840182600,0.2857745,104790.0,104780.0,1.89812944]
[1748840183308,0.2857745,104790.0,104780.0,1.94678453]
[1748840183510,0.2857745,104790.0,104780.0,1.89812944]
[1748840184401,0.2857745,104790.0,104780.0,1.94678453]
[1748840186111,0.2545745,104790.0,104780.0,1.94678453]
[1748840187212,0.0638,104790.0,104780.0,1.94678453]
[1748840187515,0.2545745,104790.0,104780.0,1.94678453]
[1748840187711,0.002,104790.0,104780.0,1.94678453]
[1748840187903,0.002,104790.0,104780.0,1.95103407]
[1748840188216,0.1927745,104790.0,104780.0,1.95103407]
[1748840188813,0.1927745,104790.0,104780.0,1.50651407]
[1748840189010,0.1927745,104790.0,104780.0,1.94466453]
[1748840189209,0.1927745,104790.0,104780.0,1.71141161]
[1748840189614,0.1927745,104790.0,104780.0,1.50226453]
[1748840189909,0.1927745,104790.0,104780.0,1.94462453]
[1748840189910,0.2581745,104790.0,104780.0,1.94462453]
[1748840191321,0.2581745,104790.0,104780.0,1.89912656]
[1748840191621,0.2581745,104790.0,104780.0,1.94462684]
[1748840192522,0.2581745,104790.0,104780.0,2.05542684]
[1748840192723,0.2581745,104790.0,104780.0,1.9958005]
[1748840193223,0.2581745,104790.0,104780.0,2.3566005]
[1748840195725,0.2581745,104790.0,104780.0,2.35661242]
[1748840196222,0.2581745,104790.0,104780.0,2.35601242]
[1748840201634,0.2581745,104790.0,104780.0,2.35637242]
[1748840202233,0.2581745,104790.0,104780.0,1.79762596]
[1748840202428,0.2581745,104790.0,104780.0,2.23962596]
[1748840202627,0.2907745,104790.0,104780.0,2.23942596]
[1748840202932,0.2907745,104790.0,104780.0,2.23962596]
[1748840204331,0.2907745,104790.0,104780.0,2.12882596]
[1748840204533,0.2907745,104790.0,104780.0,2.08331376]
[1748840204837,0.2907745,104790.0,104780.0,2.12883623]
[1748840205539,0.2907745,104790.0,104780.0,2.24546269]
[1748840205834,0.2907745,104790.0,104780.0,2.12883623]
[1748840206840,0.2907745,104790.0,104780.0,2.24546269]
[1748840207028,0.2581745,104790.0,104780.0,2.24546269]
[1748840208943,0.0674,104790.0,104780.0,2.24546269]
[1748840209143,0.2581745,104790.0,104780.0,2.24546316]
[1748840210239,0.2581745,104790.0,104780.0,2.35626316]
[1748840213035,0.2581745,104790.0,104780.0,2.41590006]
[1748840213536,0.2581745,104790.0,104780.0,2.41590073]
[1748840214034,0.2581745,104790.0,104780.0,2.41510073]
[1748840214234,0.2906745,104790.0,104780.0,2.41510073]
[1748840216643,0.2906745,104790.0,104780.0,2.29847427]
[1748840217849,0.2906745,104790.0,104780.0,2.29847936]
[1748840218544,0.2906745,104790.0,104780.0,2.41510582]
[1748840220646,0.0674,104790.0,104780.0,2.41510582]
[1748840220844,0.2581744,104790.0,104780.0,2.41510582]
[1748840221251,0.2581744,104790.0,104780.0,2.36957712]
[1748840221841,0.0674,104790.0,104780.0,2.41513039]
[1748840222547,0.0674,104790.0,104780.0,2.41937993]
[1748840223048,0.0674,104790.0,104780.0,2.35974303]
[1748840225055,0.0674,104790.0,104780.0,2.40529468]
[1748840225357,0.0674,104790.0,104780.0,2.40529345]
[1748840226850,0.0674,104790.0,104780.0,2.29449345]
[1748840227058,0.22319917,104800.0,104790.0,0.1907744]
[1748840227355,0.25619917,104800.0,104790.0,1.28604834]
[1748840227556,0.25619917,104800.0,104790.0,1.31764834]
[1748840228155,0.25719917,104800.0,104790.0,1.31764834]
[1748840228557,0.25719917,104800.0,104790.0,1.32744715]
[1748840228856,0.25919917,104800.0,104790.0,1.32844715]
[1748840229054,0.25919917,104800.0,104790.0,1.21182069]
[1748840229556,0.25919917,104800.0,104790.0,1.36492985]
[1748840230146,0.29009917,104800.0,104790.0,1.36492985]
[1748840232057,0.29009917,104800.0,104790.0,1.24830339]
[1748840232257,0.29009917,104800.0,104790.0,1.36492985]
[1748840233358,0.29009917,104800.0,104790.0,1.32844715]
[1748840233949,0.29009917,104800.0,104790.0,1.32841073]
[1748840234150,0.29009917,104800.0,104790.0,1.37707561]
[1748840234355,0.29009917,104800.0,104790.0,1.32841073]
[1748840234549,0.29009917,104800.0,104790.0,1.68921073]
[1748840234746,0.29009917,104800.0,104790.0,1.73787561]
[1748840234956,0.29009917,104800.0,104790.0,1.01627561]
[1748840235155,0.29009917,104800.0,104790.0,1.73787561]
[1748840238353,0.29009917,104800.0,104790.0,1.73787207]
[1748840240157,0.29009917,104800.0,104790.0,2.17795207]
[1748840240465,0.29009917,104800.0,104790.0,2.17799207]
[1748840240655,0.29009917,104800.0,104790.0,2.08853457]
[1748840241158,0.29009917,104800.0,104790.0,1.46858811]
[1748840241358,0.29009917,104800.0,104790.0,1.61771838]
[1748840241560,0.29009917,104800.0,104790.0,1.61791838]
[1748840242160,0.29009917,104800.0,104790.0,1.70737588]
[1748840242865,0.29009917,104800.0,104790.0,1.71162542]
[1748840243061,0.29009917,104800.0,104790.0,1.62216792]
[1748840243370,0.29009917,104800.0,104790.0,1.65496792]
[1748840243567,0.29009917,104800.0,104790.0,1.61027171]
[1748840244070,0.29009917,104800.0,104790.0,1.64267171]
[1748840244568,0.29009917,104800.0,104790.0,1.52604525]
[1748840244765,0.29009917,104800.0,104790.0,1.60619923]
[1748840247260,0.29009917,104800.0,104790.0,1.60620106]
[1748840247569,0.29009917,104800.0,104790.0,1.4895746]
[1748840247771,0.29009917,104800.0,104790.0,1.60620106]
[1748840248158,0.29009917,104800.0,104790.0,1.8663346]
[1748840248363,0.29009917,104800.0,104790.0,1.8335346]
[1748840248564,0.29009917,104800.0,104790.0,1.95016106]
[1748840248971,0.29009917,104800.0,104790.0,1.98266106]
[1748840250264,0.29009917,104800.0,104790.0,1.54190106]
[1748840250464,0.29009917,104800.0,104790.0,0.82030106]
[1748840250664,0.29009917,104800.0,104790.0,1.18110106]
[1748840251469,0.29009917,104800.0,104790.0,1.24610106]
[1748840251671,0.29009917,104800.0,104790.0,1.24610853]
[1748840254567,0.29009917,104800.0,104790.0,1.28258101]
[1748840254776,0.29009917,104800.0,104790.0,1.3272986]
[1748840256077,0.29009917,104800.0,104790.0,1.3273175]
[1748840256381,0.29009917,104800.0,104790.0,1.28259657]
[1748840257867,0.29009917,104800.0,104790.0,1.42897105]
[1748840258569,0.29009917,104800.0,104790.0,1.32734408]
[1748840258772,0.29009917,104800.0,104790.0,1.76806408]
[1748840259380,0.29009917,104800.0,104790.0,1.81672896]
[1748840262782,0.29009917,104800.0,104790.0,1.78023355]
[1748840263183,0.29009917,104800.0,104790.0,1.82496647]
[1748840263481,0.29009917,104800.0,104790.0,1.70834001]
[1748840263683,0.29009917,104800.0,104790.0,1.82496647]
[1748840264384,0.29009917,104800.0,104790.0,1.70834001]
[1748840264585,0.29009917,104800.0,104790.0,1.82496647]
[1748840267683,0.29009917,104800.0,104790.0,1.77630159]
[1748840268570,0.29009917,104800.0,104790.0,1.82496647]
[1748840268776,0.29009917,104800.0,104790.0,1.77630159]
[1748840269186,0.29009917,104800.0,104790.0,1.82496647]
[1748840269380,0.29009917,104800.0,104790.0,1.8245459]
[1748840270681,0.29009917,104800.0,104790.0,1.65925456]
[1748840270886,0.29009917,104800.0,104790.0,1.77524102]
[1748840271079,0.29009917,104800.0,104790.0,1.77504102]
[1748840271280,0.29009917,104800.0,104790.0,1.77111148]
[1748840272082,0.29009917,104800.0,104790.0,1.77091148]
[1748840272286,0.29009917,104800.0,104790.0,1.77536102]
[1748840273586,0.29009917,104800.0,104790.0,1.73024504]
[1748840273981,0.29009917,104800.0,104790.0,1.77535392]
[1748840274891,0.29009917,104800.0,104790.0,1.33515392]
[1748840275088,0.29009917,104800.0,104790.0,1.77519392]
[1748840277598,0.29009917,104800.0,104790.0,1.8238588]
[1748840279085,0.29009917,104800.0,104790.0,1.3838188]
[1748840281494,0.29009917,104800.0,104790.0,1.38381956]
[1748840282094,0.29009917,104800.0,104790.0,1.02301956]
[1748840282293,0.29009917,104800.0,104790.0,1.38381956]
[1748840284297,0.29009917,104800.0,104790.0,1.38381876]
[1748840284494,0.29009917,104800.0,104790.0,1.02301876]
[1748840284797,0.29009917,104800.0,104790.0,1.38381876]
[1748840285095,0.29009917,104800.0,104790.0,1.40141527]
[1748840285595,0.29009917,104800.0,104790.0,1.40141515]
[1748840287491,0.29009917,104800.0,104790.0,1.04061515]
[1748840287691,0.29009917,104800.0,104790.0,1.40141515]
[1748840292091,0.29009917,104800.0,104790.0,1.40388515]
[1748840294999,0.29009917,104800.0,104790.0,1.40352223]
[1748840295700,0.29009917,104800.0,104790.0,1.35485735]
[1748840295899,0.29009917,104800.0,104790.0,1.39135858]
[1748840299300,0.29009917,104800.0,104790.0,1.27473212]
[1748840299502,0.29009917,104800.0,104790.0,1.39135858]
[1748840302307,0.29009917,104800.0,104790.0,1.34663649]
[1748840302808,0.29009917,104800.0,104790.0,1.34663935]
[1748840303616,0.29009917,104800.0,104790.0,1.34238981]
[1748840304506,0.29009917,104800.0,104790.0,1.34218981]
[1748840304700,0.29009917,104800.0,104790.0,1.34643935]
[1748840304900,0.29009917,104800.0,104790.0,1.19731981]
[1748840305100,0.09934297,104800.0,104790.0,1.28637161]
[1748840305304,0.29009897,104800.0,104790.0,1.16974515]
[1748840305704,0.29009897,104800.0,104790.0,1.28637161]
[1748840306110,0.29009897,104800.0,104790.0,1.34601882]
[1748840307807,0.25779897,104800.0,104790.0,1.34601882]
[1748840308214,0.25779897,104800.0,104790.0,1.34601705]
[1748840311713,0.25779897,104800.0,104790.0,1.39075262]
[1748840311910,0.25779897,104800.0,104790.0,1.34601783]
[1748840312517,0.25779897,104800.0,104790.0,1.30128281]
[1748840312713,0.25779897,104800.0,104790.0,1.39075363]
[1748840312912,0.28989897,104800.0,104790.0,1.02995363]
[1748840313217,0.28989897,104800.0,104790.0,1.40291442]
[1748840315718,0.28989897,104800.0,104790.0,1.28628796]
[1748840315920,0.28989897,104800.0,104790.0,1.40291442]
[1748840316318,0.28989897,104800.0,104790.0,1.22128796]
[1748840316622,0.28989897,104800.0,104790.0,0.91997872]
[1748840316821,0.28989897,104800.0,104790.0,0.96046376]
[1748840317720,0.28989897,104800.0,104790.0,1.02136376]
[1748840317920,0.28989897,104800.0,104790.0,1.0256133]
[1748840318719,0.28989897,104800.0,104790.0,1.06211491]
[1748840318923,0.28989897,104800.0,104790.0,0.70131491]
[1748840319217,0.28989897,104800.0,104790.0,1.06211491]
[1748840319927,0.28989897,104800.0,104790.0,1.01738033]
[1748840321725,0.28989897,104800.0,104790.0,1.06211048]
[1748840321927,0.28989897,104800.0,104790.0,1.06210562]
[1748840322525,0.28989897,104800.0,104790.0,1.01737547]
[1748840323723,0.28989897,104800.0,104790.0,0.98717547]
[1748840323930,0.28989897,104800.0,104790.0,1.02765547]
[1748840324122,0.28989897,104800.0,104790.0,0.98695666]
[1748840324320,0.40652543,104800.0,104790.0,0.98715666]
[1748840324624,0.40652543,104800.0,104790.0,0.98695666]
[1748840324825,0.40652543,104800.0,104790.0,0.98715666]
[1748840325027,0.40652543,104800.0,104790.0,0.9914062]
[1748840325424,0.28989897,104800.0,104790.0,0.9914062]
[1748840326231,0.28989897,104800.0,104790.0,0.9914033]
[1748840326731,0.28989897,104800.0,104790.0,0.87477684]
[1748840327032,0.28989897,104800.0,104790.0,0.9914033]
[1748840329232,0.28989897,104800.0,104790.0,0.87477684]
[1748840329642,0.28989897,104800.0,104790.0,0.9914033]
[1748840330533,0.28989897,104800.0,104790.0,0.94667348]
[1748840330739,0.28989897,104800.0,104790.0,0.99139991]
[1748840331629,0.28989897,104800.0,104790.0,0.91139991]
[1748840331934,0.28989897,104800.0,104790.0,0.92356318]
[1748840332131,0.73373897,104800.0,104790.0,0.86666831]
[1748840332332,0.73373897,104800.0,104790.0,0.93126831]
[1748840334944,0.73373897,104800.0,104790.0,0.88696056]
[1748840335245,0.73373897,104800.0,104790.0,0.93126809]
[1748840335430,0.83893897,104800.0,104790.0,0.93126809]
[1748840337439,0.83893897,104800.0,104790.0,0.57046809]
[1748840337646,0.83893897,104800.0,104790.0,0.93126809]
[1748840338142,0.95556543,104800.0,104790.0,0.89966809]
[1748840338540,0.95556543,104800.0,104790.0,0.89946809]
[1748840338847,0.95556543,104800.0,104790.0,0.89966809]
[1748840339440,0.95556543,104800.0,104790.0,0.85536056]
[1748840339639,0.95556543,104800.0,104790.0,0.89966987]
[1748840339844,0.95556543,104800.0,104790.0,0.89966947]
[1748840341940,0.95556543,104800.0,104790.0,0.94439793]
[1748840342144,0.95556543,104800.0,104790.0,0.85536016]
[1748840342337,0.95556543,104800.0,104790.0,0.94439881]
[1748840344446,0.95556543,104800.0,104790.0,0.94440128]